fUSD/lending_fUSD_20260129
["ID","MTS","AMOUNT","RATE_DAILY","PERIOD"]
[403908088,1769657446669,-2000.0,0.000179,2]
[403908091,1769657451581,151.0,0.00016193,2]
[403908092,1769657468561,151.0,0.00016189,2]
[403908093,1769657534916,151.0,0.00016187,2]
[403908095,1769657703144,151.0,0.00021,30]
[403908096,1769657703194,150.0,0.00021,60]
[403908098,1769657935344,391.0,0.00021,30]
[403908099,1769657989775,3117.0,0.00021,30]
[403908108,1769658328479,177.42,0.0001313,2]
[403908109,1769658331508,-166.66,0.00015657,2]
[403908110,1769658331530,-151.0,0.00015914,2]
[403908111,1769658331553,-150.00306042,0.00015986,2]
[403908112,1769658331572,-166.66,0.00015986,2]
[403908113,1769658331592,-250.0,0.00016123,2]
[403908114,1769658331612,-88.07659319,0.00016273,2]
[403908115,1769658359190,-151.0,0.00015942,2]
[403908116,1769658359212,-151.0,0.00015942,2]
[403908117,1769658359235,-123.38166043,0.00016273,2]
[403908118,1769658359256,-166.66,0.00016316,2]
[403908119,1769658359276,-188.0,0.00016372,2]
[403908120,1769658359296,-1200.0,0.00016372,2]
[403908121,1769658359315,-500.74779693,0.00016373,2]
[403908122,1769658359336,-500.0,0.00016373,2]
[403908123,1769658359356,-534.97384102,0.00016373,2]
[403908124,1769658359376,-500.0,0.00016373,2]
[403908125,1769658359396,-500.0,0.00016373,2]
[403908126,1769658359415,-500.0,0.00016373,2]
[403908127,1769658359434,-669.40224184,0.00016419,2]
[403908130,1769658437087,-151.0,0.00015928,2]
[403908131,1769658437109,-151.0,0.00015936,2]
[403908132,1769658437130,-500.0,0.00016373,2]
[403908133,1769658437150,-503.6719094,0.00016409,2]
[403908134,1769658437170,-202.84297639,0.00016409,2]
[403908135,1769658437192,-150.00223956,0.00016438,2]
[403908136,1769658437213,-871.27,0.00016502,2]
[403908137,1769658437234,-235.46,0.00016623,2]
[403908138,1769658437255,-166.66,0.00016645,2]
[403908139,1769658437276,-46.10978022,0.00016647,2]
[403908140,1769658454081,-9509.43320178,0.00016647,2]
[403908141,1769658454104,-235.46,0.00016677,2]
[403908142,1769658454125,-235.46,0.00016731,2]
[403908143,1769658454147,-235.46,0.00016784,2]
[403908144,1769658454169,-235.46,0.00016838,2]
[403908145,1769658454190,-235.46,0.00016891,2]
[403908146,1769658454211,-1000.0,0.00016921,2]
[403908147,1769658454232,-1000.0,0.00016921,2]
[403908148,1769658454252,-235.46,0.00016945,2]
[403908149,1769658454272,-166.66,0.00016975,2]
[403908150,1769658454293,-302.53643508,0.00016993,2]
[403908151,1769658554072,-151.0,0.00016011,2]
[403908152,1769658575439,151.0,0.00015994,2]
[403908153,1769658591659,151.0,0.00015994,2]
[403908155,1769658608104,151.0,0.00015994,2]
[403908161,1769658632164,-398.2429221,0.00016373,2]
[403908164,1769658632219,-101.7570779,0.00016373,2]
[403908165,1769658632228,-287.0,0.00016373,2]
[403908166,1769658632238,-151.0,0.00016409,2]
[403908167,1769658632247,-151.0,0.00016409,2]
[403908168,1769658632258,-151.0,0.00016409,2]
[403908169,1769658632267,-272.69214043,0.00016409,2]
[403908170,1769658632276,-165.56,0.00016712,2]
[403908171,1769658632286,-272.71487804,0.00016921,2]
[403908172,1769658632309,-64.59356492,0.00016993,2]
[403908173,1769658632319,-235.46,0.00016998,2]
[403908174,1769658632334,-250.0,0.00017,2]
[403908175,1769658632351,-235.46,0.00017052,2]
[403908176,1769658632363,-235.46,0.00017105,2]
[403908177,1769658632374,-235.46,0.00017159,2]
[403908178,1769658632384,-258.0,0.0001716,2]
[403908179,1769658632393,-7801.2,0.00017161,2]
[403908180,1769658632405,-361.6555998,0.00017205,2]
[403908181,1769658632415,-235.46,0.00017213,2]
[403908182,1769658632427,-640.01572414,0.00017234,2]
[403908183,1769658632436,-235.46,0.00017266,2]
[403908184,1769658632445,-166.66,0.00017305,2]
[403908185,1769658632455,-235.46,0.0001732,2]
[403908186,1769658632464,-2768.0,0.00017339,2]
[403908187,1769658632474,-235.46,0.00017373,2]
[403908188,1769658632484,-235.46,0.00017427,2]
[403908190,1769658632493,-1500.0,0.00017468,2]
[403908192,1769658632503,-235.46,0.0001748,2]
[403908194,1769658632512,-235.46,0.00017534,2]
[403908195,1769658632521,-235.46,0.00017588,2]
[403908198,1769658632531,-250.0,0.00017612,2]
[403908200,1769658632540,-600.0,0.00017612,2]
[403908202,1769658632549,-195.0,0.00017624,2]
[403908204,1769658632558,-235.46,0.00017641,2]
[403908206,1769658632567,-150.0,0.00017659,2]
[403908208,1769658632576,-152.74083956,0.00017659,2]
[403908210,1769658632585,-185.0,0.00017659,2]
[403908212,1769658632595,-224.32,0.000178,2]
[403908214,1769658632604,-5811.57550082,0.000178,2]
[403908216,1769658632616,-927.69623708,0.000178,2]
[403908220,1769658632645,-105.0819069,0.000178,2]
[403908222,1769658632654,-507.80822567,0.00017809,2]
[403908226,1769658632680,-313.71177433,0.00017809,2]
[403908228,1769658632689,-500.0,0.00017809,2]
[403908229,1769658632699,-500.0,0.00017809,2]
[403908231,1769658632709,-500.0,0.00017809,2]
[403908233,1769658632719,-500.0,0.00017809,2]
[403908234,1769658632728,-500.0,0.00017809,2]
[403908235,1769658632737,-500.0,0.00017809,2]
[403908236,1769658632746,-500.0,0.00017809,2]
[403908237,1769658632755,-500.0,0.00017809,2]
[403908238,1769658632765,-500.0,0.00017809,2]
[403908239,1769658632774,-500.0,0.00017809,2]
[403908240,1769658632783,-500.0,0.00017809,2]
[403908241,1769658632792,-500.0,0.00017809,2]
[403908242,1769658632801,-500.0,0.00017809,2]
[403908243,1769658632810,-500.0,0.00017809,2]
[403908244,1769658632819,-500.0,0.00017809,2]
[403908245,1769658632828,-500.0,0.00017809,2]
[403908246,1769658632837,-500.0,0.00017809,2]
[403908247,1769658632846,-500.0,0.00017809,2]
[403908248,1769658632855,-500.0,0.00017809,2]
[403908249,1769658632865,-500.0,0.00017809,2]
[403908251,1769658632874,-500.0,0.00017809,2]
[403908252,1769658632882,-500.0,0.00017809,2]
[403908254,1769658632891,-500.0,0.00017809,2]
[403908256,1769658632900,-500.0,0.00017809,2]
[403908258,1769658632909,-500.0,0.00017809,2]
[403908259,1769658632918,-500.0,0.00017809,2]
[403908261,1769658632926,-500.0,0.00017809,2]
[403908262,1769658632937,-500.0,0.00017809,2]
[403908263,1769658632948,-500.0,0.00017809,2]
[403908264,1769658632957,-500.0,0.00017809,2]
[403908265,1769658632967,-500.0,0.00017809,2]
[403908266,1769658632978,-500.0,0.00017809,2]
[403908267,1769658632988,-500.0,0.00017809,2]
[403908268,1769658632998,-500.0,0.00017809,2]
[403908269,1769658633008,-500.0,0.00017809,2]
[403908270,1769658633017,-500.0,0.00017809,2]
[403908271,1769658633026,-500.0,0.00017809,2]
[403908272,1769658633039,-7.72076949,0.00017809,2]
[403908273,1769658633051,-492.27923051,0.00017809,2]
[403908274,1769658633060,-500.0,0.00017809,2]
[403908275,1769658633070,-500.0,0.00017809,2]
[403908276,1769658633082,-500.0,0.00017809,2]
[403908277,1769658633092,-500.0,0.00017809,2]
[403908278,1769658633102,-500.0,0.00017809,2]
[403908279,1769658633112,-500.0,0.00017809,2]
[403908280,1769658633122,-500.0,0.00017809,2]
[403908281,1769658633131,-500.0,0.00017809,2]
[403908282,1769658633140,-500.0,0.00017809,2]
[403908283,1769658633150,-500.0,0.00017809,2]
[403908284,1769658633160,-500.0,0.00017809,2]
[403908285,1769658633170,-500.0,0.00017809,2]
[403908286,1769658633179,-500.0,0.00017809,2]
[403908287,1769658633189,-500.0,0.00017809,2]
[403908288,1769658633199,-500.0,0.00017809,2]
[403908289,1769658633209,-500.0,0.00017809,2]
[403908290,1769658633219,-500.0,0.00017809,2]
[403908291,1769658633228,-500.0,0.00017809,2]
[403908292,1769658633238,-500.0,0.00017809,2]
[403908293,1769658633247,-500.0,0.00017809,2]
[403908294,1769658633258,-500.0,0.00017809,2]
[403908295,1769658633269,-500.0,0.00017809,2]
[403908296,1769658633279,-500.0,0.00017809,2]
[403908297,1769658633289,-500.0,0.00017809,2]
[403908298,1769658633298,-487.14768342,0.00017809,2]
[403908299,1769658633345,-12.85231658,0.00017809,2]
[403908300,1769658633354,-500.0,0.00017809,2]
[403908301,1769658633366,-307.69759697,0.00017809,2]
[403908302,1769658633377,-192.30240303,0.00017809,2]
[403908303,1769658633386,-500.0,0.00017809,2]
[403908304,1769658633395,-409.21086687,0.00017809,2]
[403908305,1769658633404,-500.0,0.00017809,2]
[403908306,1769658633413,-5.21400168,0.00017809,2]
[403908307,1769658633429,-605.22318917,0.00017809,2]
[403908308,1769658633441,-500.0,0.00017809,2]
[403908309,1769658633450,-500.0,0.00017809,2]
[403908310,1769658633459,-500.0,0.00017809,2]
[403908311,1769658633471,-500.0,0.00017809,2]
[403908312,1769658633480,-500.0,0.00017809,2]
[403908313,1769658633489,-500.0,0.00017809,2]
[403908314,1769658633498,-18.09979078,0.00017809,2]
[403908315,1769658633509,-481.90020922,0.00017809,2]
[403908316,1769658633519,-500.0,0.00017809,2]
[403908317,1769658633528,-500.0,0.00017809,2]
[403908318,1769658633537,-500.0,0.00017809,2]
[403908319,1769658633546,-16.60721563,0.00017809,2]
[403908320,1769658633557,-483.39278437,0.00017809,2]
[403908321,1769658633566,-500.0,0.00017809,2]
[403908322,1769658633575,-500.0,0.00017809,2]
[403908323,1769658633585,-500.0,0.00017809,2]
[403908324,1769658633593,-500.0,0.00017809,2]
[403908325,1769658633602,-500.0,0.00017809,2]
[403908326,1769658633611,-500.0,0.00017809,2]
[403908327,1769658633620,-500.0,0.00017809,2]
[403908328,1769658633629,-175.23448459,0.00017809,2]
[403908329,1769658633640,-324.76551541,0.00017809,2]
[403908330,1769658633650,-600.0,0.00017809,2]
[403908331,1769658633659,-1734.48033345,0.00017811,2]
[403908332,1769658633670,-265.84703492,0.00017811,2]
[403908333,1769658633689,-4844.02627637,0.00017811,2]
[403908334,1769658633698,-510.44048275,0.00017822,2]
[403908338,1769658639343,-883.93218096,0.00017822,2]
[403908339,1769658639364,-1574.11393715,0.00017822,2]
[403908340,1769658639449,-211.45825362,0.00016821,2]
[403908341,1769658639459,-3875.86704388,0.00017822,2]
[403908342,1769658639470,-295.84403545,0.00017823,2]
[403908343,1769658639480,-6844.35364474,0.00017833,2]
[403908344,1769658639490,-6844.35364474,0.00017844,2]
[403908345,1769658639499,-6844.35364474,0.00017856,2]
[403908346,1769658639509,-2768.0,0.00017859,2]
[403908347,1769658639518,-4475.0772,0.00017863,2]
[403908348,1769658639527,-6844.35364474,0.00017867,2]
[403908349,1769658639537,-6844.35364474,0.00017878,2]
[403908350,1769658639547,-384.15884044,0.00017883,2]
[403908351,1769658639557,-114.6339839,0.00017883,2]
[403908352,1769658639568,-270.63893,0.00017883,2]
[403908353,1769658639587,-292.42881643,0.00017883,2]
[403908354,1769658639597,-1013.8012579,0.00017883,2]
[403908355,1769658639606,-1371.7044,0.00017883,2]
[403908356,1769658639616,-6844.35364474,0.00017889,2]
[403908357,1769658639626,-500.0,0.00017899,2]
[403908358,1769658639637,-351.56,0.00017899,2]
[403908359,1769658639647,-500.0,0.00017899,2]
[403908360,1769658639657,-631.2396331,0.00017899,2]
[403908361,1769658639666,-500.0,0.00017899,2]
[403908362,1769658639676,-328.14882976,0.000179,2]
[403908363,1769658639686,-1140.6022,0.000179,2]
[403908364,1769658639696,-589.8512,0.000179,2]
[403908365,1769658639705,-195.9193035,0.000179,2]
[403908366,1769658639714,-6844.35364474,0.000179,2]
[403908367,1769658639723,-8824.68898644,0.000179,2]
[403908368,1769658639734,-257.38124901,0.000179,2]
[403908369,1769658639743,-218.70829543,0.000179,2]
[403908370,1769658639752,-934.81727623,0.00017982,2]
[403908371,1769658639761,-151.94,0.0001799,2]
[403908372,1769658639771,-151.94,0.0001799,2]
[403908373,1769658639783,-151.94,0.0001799,2]
[403908374,1769658639793,-151.94,0.0001799,2]
[403908375,1769658639803,-151.94,0.0001799,2]
[403908376,1769658639813,-500.0,0.00017996,2]
[403908377,1769658639822,-234.99232874,0.00017996,2]
[403908378,1769658639832,-500.0,0.00017996,2]
[403908379,1769658639841,-364.72005468,0.00017996,2]
[403908380,1769658639852,-41348.8012701,0.00017997,2]
[403908381,1769658639861,-151.0,0.00017997,2]
[403908382,1769658639870,-500.0,0.00017999,2]
[403908383,1769658639879,-500.0,0.00017999,2]
[403908384,1769658639888,-500.0,0.00017999,2]
[403908385,1769658639898,-500.0,0.00017999,2]
[403908386,1769658639907,-308.31742635,0.00017999,2]
[403908387,1769658639917,-333.62601985,0.00017999,2]
[403908388,1769658639925,-500.0,0.00017999,2]
[403908389,1769658639934,-500.0,0.00017999,2]
[403908390,1769658639944,-506.9,0.00017999,2]
[403908391,1769658639954,-3948906.02891458,0.00018,2]
[403908392,1769658639964,-112109.31765215,0.00018,2]
[403908393,1769658639973,-1151394.5877277,0.00018,2]
[403908394,1769658639997,-8984.54281752,0.00018,2]
[403908397,1769658640554,-48376.62830723,0.00018,2]
[403908398,1769658640577,-2522.59390257,0.00018,2]
[403908399,1769658640588,-292.0,0.00018,2]
[403908400,1769658640599,-252.636388,0.00018,2]
[403908401,1769658640610,-765.44534152,0.00018,2]
[403908402,1769658640621,-2333.0,0.00018,2]
[403908403,1769658640636,-881.60107053,0.00018,2]
[403908404,1769658640650,-1365.73756418,0.00018,2]
[403908405,1769658640661,-657.68529914,0.00018,2]
[403908406,1769658640672,-3023.09229667,0.00018,2]
[403908407,1769658640688,-776.90309751,0.00018,2]
[403908408,1769658640724,-151.0,0.00016467,2]
[403908409,1769658640733,-98902.42607217,0.00018,2]
[403908411,1769658640815,-1760.88668995,0.00018,2]
[403908417,1769658643386,-2353.88008,0.00018,2]
[403908419,1769658643443,-1451.04749578,0.00018,2]
[403908420,1769658643454,-1676.38428101,0.00018,2]
[403908421,1769658643670,-12830.48322079,0.00018,2]
[403908422,1769658643696,-1426.9169098,0.00018,2]
[403908423,1769658643707,-1632.89,0.00018,2]
[403908424,1769658643730,-607470.11443803,0.00018,2]
[403908425,1769658643741,-710.92467494,0.00018,2]
[403908426,1769658643837,-108.04440608,0.00018,2]
[403908433,1769658646894,-796.99177495,0.000178,2]
[403908434,1769658646958,-203.00822505,0.000178,2]
[403908435,1769658646967,-93605.28582876,0.00018,2]
[403908436,1769658646980,-989.08349144,0.00018,2]
[403908437,1769658647054,-61034.70122601,0.00018,2]
[403908438,1769658647065,-78602.54842374,0.00018,2]
[403908439,1769658647078,-629.2,0.00018,2]
[403908440,1769658647101,-8101.92395613,0.00018,2]
[403908441,1769658647112,-37148.62673143,0.00018,2]
[403908442,1769658647124,-27731.23772374,0.00018,2]
[403908443,1769658724732,151.0,0.00016195,2]
[403908444,1769658820267,3214.16,0.00014625,2]
[403908556,1769659639241,-314.14372831,0.00016373,2]
[403908557,1769659654076,-185.85627169,0.00016373,2]
[403908558,1769659654097,-111.94541886,0.00016373,2]
[403908567,1769659831514,-388.05458114,0.00016373,2]
[403908568,1769659831523,-717.68166801,0.00016438,2]
[403908569,1769659831533,-226.88,0.00016861,2]
[403908570,1769659831543,-1000.0,0.00016921,2]
[403908571,1769659831552,-1600.0,0.00016939,2]
[403908572,1769659831562,-227.11,0.00016964,2]
[403908573,1769659831572,-250.0,0.00017,2]
[403908574,1769659831581,-3505.48361574,0.00017013,2]
[403908579,1769659837515,-151.0,0.00016369,2]
[403908580,1769659837525,-256.83260535,0.00017013,2]
[403908581,1769659837621,-1381.54377891,0.00017013,2]
[403908582,1769659837630,-184.02,0.00017013,2]
[403908583,1769659837638,-1852.42,0.00017088,2]
[403908584,1769659837647,-206.89,0.00017181,2]
[403908585,1769659837656,-200.0,0.00017209,2]
[403908586,1769659837665,-5604.41,0.00017268,2]
[403908587,1769659837674,-262.85,0.00017436,2]
[403908588,1769659837684,-1500.0,0.00017468,2]
[403908589,1769659837693,-1890.409,0.00017673,2]
[403908590,1769659837702,-3043.0,0.00017673,2]
[403908591,1769659837711,-179.513,0.00017673,2]
[403908592,1769659837720,-226.88,0.00017798,2]
[403908593,1769659837729,-328.73043504,0.000179,2]
[403908594,1769659837738,-237.79085036,0.000179,2]
[403908601,1769659838024,-10937.93152382,0.000179,2]
[403908602,1769659838035,-11480.7539,0.000179,2]
[403908603,1769659838045,-1715.30888326,0.000179,2]
[403908604,1769659838055,-500.0,0.00017989,2]
[403908605,1769659838065,-207.4,0.00017989,2]
[403908606,1769659838075,-151.0,0.00017997,2]
[403908607,1769659838084,-151.0,0.00017997,2]
[403908608,1769659838093,-196.72051846,0.00017997,2]
[403908609,1769659838102,-712.01,0.00017999,2]
[403908610,1769659838111,-546.56219791,0.00017999,2]
[403908611,1769659838120,-500.0,0.00017999,2]
[403908612,1769659838129,-580.66574664,0.00017999,2]
[403908613,1769659838139,-164.49463012,0.00017999,2]
[403908614,1769659838148,-222.71349961,0.00017999,2]
[403908615,1769659838158,-373.45112111,0.00017999,2]
[403908616,1769659838168,-500.0,0.00017999,2]
[403908617,1769659838177,-455.30403828,0.00017999,2]
[403908618,1769659838186,-484.34269904,0.00017999,2]
[403908619,1769659838195,-500.0,0.00017999,2]
[403908620,1769659838204,-500.0,0.00017999,2]
[403908621,1769659838214,-500.0,0.00017999,2]
[403908622,1769659838223,-500.0,0.00017999,2]
[403908623,1769659838232,-500.0,0.00017999,2]
[403908624,1769659838242,-278.80120743,0.00017999,2]
[403908625,1769659838251,-500.0,0.00017999,2]
[403908626,1769659838260,-161.04371908,0.00017999,2]
[403908627,1769659838270,-500.0,0.00017999,2]
[403908628,1769659838279,-402.91791552,0.00017999,2]
[403908629,1769659838288,-500.0,0.00017999,2]
[403908630,1769659838297,-500.0,0.00017999,2]
[403908631,1769659838306,-500.0,0.00017999,2]
[403908632,1769659838315,-500.0,0.00017999,2]
[403908633,1769659838327,-500.0,0.00017999,2]
[403908634,1769659838337,-500.0,0.00017999,2]
[403908635,1769659838347,-600.0,0.00017999,2]
[403908636,1769659838357,-1208583.02671526,0.00018,2]
[403908637,1769659839803,-151.0,0.00016424,2]
[403908638,1769659839812,-1242.20373301,0.00018,2]
[403908639,1769659839842,-600.719909,0.00018,2]
[403908640,1769659839891,-1330.08239876,0.00018,2]
[403908641,1769659839902,-4669.82032168,0.00018,2]
[403908642,1769659839913,-649.35889914,0.00018,2]
[403908643,1769659839923,-3240.81569182,0.00018,2]
[403908644,1769659839950,-621.86898814,0.00018,2]
[403908645,1769659839961,-789.47421459,0.00018,2]
[403908663,1769659842690,-1266854.30478258,0.00018,2]
[403908664,1769659842702,-2944.74431149,0.00018,2]
[403908665,1769659842796,-4248.30859938,0.00018,2]
[403908673,1769659845688,-411.19226419,0.000179,2]
[403908674,1769659845698,-2534.66464438,0.00018,2]
[403908675,1769659845709,-332.83747415,0.00018,2]
[403908676,1769659845743,-271.765,0.00018,2]
[403908677,1769659845755,-2287.2,0.00018,2]
[403908678,1769659845766,-791.76608443,0.00018,2]
[403908679,1769659845799,-17049.44796513,0.00018,2]
[403908680,1769659845855,-302.16700279,0.00018,2]
[403908735,1769660841111,-151.0,0.00015969,2]
[403908736,1769660841131,-195.0,0.00016114,2]
[403908737,1769660841150,-183.0408,0.00016252,2]
[403908738,1769660841170,-500.0,0.00016373,2]
[403908739,1769660841190,-197.72,0.00016403,2]
[403908740,1769660841211,-6643.68957283,0.000165,2]
[403908752,1769660947076,-166.66,0.00015868,2]
[403908753,1769660947099,-151.0,0.00015981,2]
[403908754,1769660947119,-26717.46544999,0.00016,4]
[403908756,1769660957101,-5304.734316,0.00016,4]
[403908758,1769660960120,-17165.26026575,0.00016,4]
[403908759,1769660962176,-23251.84211662,0.00016,4]
[403908763,1769660993600,394.04055726,0.00021,120]
[403908800,1769661031602,-151.0,0.00015951,2]
[403908801,1769661031612,-151.0,0.00015951,2]
[403908802,1769661031622,-1529.0046154,0.00016,4]
[403908803,1769661031746,-630.31,0.00016,4]
[403908804,1769661031769,-378.63644074,0.00016,4]
[403908805,1769661031781,-4581.82126325,0.00016,4]
[403908806,1769661031791,-166.66,0.00016202,2]
[403908807,1769661031800,-1200.0,0.00016372,2]
[403908808,1769661031811,-500.0,0.00016373,2]
[403908809,1769661031820,-500.0,0.00016373,2]
[403908810,1769661031829,-500.0,0.00016373,2]
[403908811,1769661031838,-500.0,0.00016373,2]
[403908813,1769661031847,-500.0,0.00016373,2]
[403908814,1769661031856,-500.0,0.00016373,2]
[403908816,1769661031866,-7247.69767377,0.000165,2]
[403908818,1769661031875,-166.66,0.00016536,2]
[403908820,1769661031884,-406.9,0.00016657,2]
[403908821,1769661031893,-1000.0,0.00016763,2]
[403908822,1769661031902,-9640.14,0.00016786,2]
[403908823,1769661031911,-51940.02,0.00016841,2]
[403908824,1769661031920,-166.66,0.0001687,2]
[403908825,1769661031929,-1000.0,0.00016892,2]
[403908826,1769661031938,-197.72,0.00016905,2]
[403908827,1769661031947,-1000.0,0.00016921,2]
[403908828,1769661031957,-200.0,0.00017112,2]
[403908829,1769661031966,-166.66,0.00017204,2]
[403908830,1769661031974,-197.72,0.00017407,2]
[403908831,1769661031983,-460.20817435,0.00017468,2]
[403908832,1769661031992,-175.0,0.00017488,2]
[403908833,1769661032001,-1000.0,0.00017525,2]
[403908834,1769661032011,-166.66,0.00017538,2]
[403908835,1769661032020,-250.0,0.00017566,2]
[403908836,1769661032029,-175.0,0.00017586,2]
[403908837,1769661032039,-175.0,0.00017598,2]
[403908838,1769661032049,-439.8270854,0.000176,2]
[403908839,1769661032059,-195.0,0.000176,2]
[403908840,1769661032068,-175.0,0.00017618,2]
[403908841,1769661032078,-175.0,0.00017652,2]
[403908842,1769661032088,-175.0,0.00017695,2]
[403908843,1769661032099,-175.0,0.00017703,2]
[403908844,1769661032108,-169.49,0.00017707,2]
[403908845,1769661032117,-175.0,0.00017738,2]
[403908846,1769661032127,-175.0,0.00017778,2]
[403908847,1769661032136,-175.0,0.00017797,2]
[403908848,1769661032146,-11480.7539,0.00017799,2]
[403908849,1769661032155,-500.0,0.00017808,2]
[403908850,1769661032164,-175.0,0.00017809,2]
[403908851,1769661032174,-175.0,0.00017832,2]
[403908852,1769661032182,-500.0,0.00017863,2]
[403908853,1769661032191,-151.94,0.0001789,2]
[403908854,1769661032200,-4370.2927454,0.00017893,2]
[403908855,1769661032210,-4370.29274531,0.00017894,2]
[403908856,1769661032220,-4370.29274531,0.00017895,2]
[403908857,1769661032229,-4370.29274531,0.00017895,2]
[403908858,1769661032238,-4370.29274531,0.00017896,2]
[403908859,1769661032247,-4370.29274531,0.00017897,2]
[403908860,1769661032256,-4370.29274531,0.00017898,2]
[403908861,1769661032265,-4370.29274531,0.00017898,2]
[403908862,1769661032274,-500.0,0.00017899,2]
[403908863,1769661032283,-500.0,0.00017899,2]
[403908864,1769661032292,-500.0,0.00017899,2]
[403908865,1769661032301,-500.0,0.00017899,2]
[403908866,1769661032310,-500.0,0.00017899,2]
[403908867,1769661032319,-500.0,0.00017899,2]
[403908868,1769661032328,-500.0,0.00017899,2]
[403908869,1769661032337,-500.0,0.00017899,2]
[403908870,1769661032346,-500.0,0.00017899,2]
[403908871,1769661032355,-500.0,0.00017899,2]
[403908872,1769661032364,-500.0,0.00017899,2]
[403908873,1769661032373,-200.37639098,0.00017899,2]
[403908874,1769661032382,-500.0,0.00017899,2]
[403908875,1769661032392,-4370.29274531,0.00017899,2]
[403908876,1769661032400,-4370.29274531,0.000179,2]
[403908877,1769661032409,-1140.6022,0.000179,2]
[403908878,1769661032418,-23801.89552769,0.000179,2]
[403908879,1769661032430,-8847.50777483,0.000179,2]
[403908880,1769661032441,-1238.93284746,0.000179,2]
[403908904,1769661037642,-723.73525992,0.000179,2]
[403908905,1769661037700,-133812.64598224,0.000179,2]
[403908906,1769661037709,-10069.57292627,0.000179,2]
[403908907,1769661037719,-589.8512,0.000179,2]
[403908908,1769661037728,-298.83862426,0.000179,2]
[403908909,1769661037740,-527.18675567,0.000179,2]
[403908910,1769661037750,-788.63985751,0.000179,2]
[403908911,1769661037759,-1067.0517,0.000179,2]
[403908912,1769661037768,-1715.30888326,0.000179,2]
[403908913,1769661037778,-500.0,0.00017918,2]
[403908914,1769661037789,-175.0,0.00017956,2]
[403908915,1769661037798,-500.0,0.00017972,2]
[403908916,1769661037807,-934.81727623,0.00017982,2]
[403908917,1769661037818,-30576.50700356,0.0001799,3]
[403908918,1769661037827,-151.94,0.0001799,2]
[403908919,1769661037838,-151.94,0.0001799,2]
[403908920,1769661037847,-151.94,0.0001799,2]
[403908921,1769661037859,-151.94,0.0001799,2]
[403908922,1769661037869,-165.37,0.0001799,2]
[403908924,1769661037878,-175.0,0.00017993,2]
[403908925,1769661037888,-151.0,0.00017997,2]
[403908926,1769661037897,-500.0,0.00017999,2]
[403908927,1769661037907,-830.69,0.00017999,2]
[403908928,1769661037916,-500.0,0.00017999,2]
[403908929,1769661037925,-593.86086626,0.00017999,2]
[403908930,1769661037934,-308.31742635,0.00017999,2]
[403908931,1769661037943,-500.0,0.00017999,2]
[403908932,1769661037952,-580.66574664,0.00017999,2]
[403908933,1769661037961,-500.0,0.00017999,2]
[403908934,1769661037970,-500.0,0.00017999,2]
[403908935,1769661037979,-577.13765043,0.00017999,2]
[403908936,1769661037988,-500.0,0.00017999,2]
[403908937,1769661037997,-206.05029368,0.00017999,2]
[403908938,1769661038007,-422354.8135859,0.00018,2]
[403908939,1769661038017,-151.5011,0.00018,2]
[403908940,1769661038026,-263.27299926,0.00018,2]
[403908941,1769661038035,-151.61356357,0.00018,2]
[403908942,1769661038045,-49060.8324251,0.00018,2]
[403908943,1769661038055,-200.0,0.00018,2]